{"text_format":"2","workbook":"xlsx","n_sheets":3,"sheets":["Főösszesítő","Karbantartási díj","Vegyszer díj"],"not_rendered":{"charts":0,"images":0,"macros":0,"external_links":0,"defined_names":0,"comments":0,"pivot_tables":0},"unopened":[],"bounds":{"document_bytes":16777216,"sheet_cells":100000,"run_cost":"one","rows_first":2000,"rows_last":500,"rows_between":2000,"halvings":0,"cell_chars":16384,"cell_head_chars":4096},"cells_cut":0,"cells_raw":0,"read":"whole","date_system":"1900"}

{"sheet":"Főösszesítő","index":0,"n_rows":26,"n_cols":8,"rows_kept":26,"cut":false,"hidden":false,"merged":[[25,3,26,6],[19,7,19,10],[20,7,20,10],[23,7,24,10],[25,7,26,10],[1,2,3,13],[23,3,24,6],[10,3,11,11],[19,3,19,6],[20,3,20,6],[17,7,18,10],[13,7,14,10],[15,3,15,6],[15,7,15,10],[16,3,16,6],[16,7,16,10]]}
[]
[null,null,"Dr. Bugyi István Multidiszciplináris Centrum Ivóvíz rendszer karbantartás"]
{"$rows_empty":8}
[null,null,null,"Főösszesítő"]
[]
[]
[{"$nulls":7},"1 hónapra vetítve"]
[]
[null,null,null,"Karbantartási díj ( nettó Ft )",null,null,null,{"$f":"SUM('Karbantartási díj'!B21:B22)","v":0}]
[null,null,null,"Vegyszer díj ( nettó Ft )",null,null,null,{"$f":"SUM('Vegyszer díj'!B11:B12)","v":0}]
[{"$nulls":7},"12 hónapra vetítve"]
[]
[null,null,null,"Karbantartási díj ( nettó Ft )",null,null,null,{"$f":"SUM('Karbantartási díj'!C21:C22)","v":0}]
[null,null,null,"Vegyszer díj ( nettó Ft )",null,null,null,{"$f":"SUM('Vegyszer díj'!C11:C12)","v":0}]
[]
[]
[null,null,null,"Mindösszesen (nettó Ft)",null,null,null,{"$f":"SUM(H20:I21)","v":0}]
[]
[null,null,null,"Mindösszesen (bruttó Ft)",null,null,null,{"$f":"SUM(H24*1.27)","v":0}]

{"sheet":"Karbantartási díj","index":1,"n_rows":23,"n_cols":3,"rows_kept":23,"cut":false,"hidden":false,"merged":[[0,0,2,2],[20,0,21,0],[20,1,21,1],[20,2,21,2],[22,0,23,0],[22,1,23,1],[22,2,23,2]]}
["Csak \"B\" oszlopot! szükséges kitölteni !!!!"]
[]
[]
[null,"Karbantartási díj/hó (nettó Ft)","Karbantartási díj/12 hó (nettó Ft)"]
["Vegyszeradagolási pontok tisztítása, tömítések cseréje (2 alkalom/hó)",null,{"$f":"B5*12","v":0}]
["Fotometriai vízkémia ellenőrzése: nitrit, nitrát, Fe, Mn, As stb.  (2 alkalom/hó) ",null,{"$f":"B6*12","v":0}]
["Pneumatikus rendszer ellenőrzése, hibák feltárása",null,0]
["Vegyszer csövek cseréje (1 alkalom/év)",null,0]
["Vízkezelő terem takarítása (1 alkalom/év)",null,0]
["Tartályok kézi visszamosatása, vizuális ellenőrzése",null,0]
["Feladó, visszamosó szivattyúk ellenőrzése",null,0]
["2 db tisztavíz medence leengedése + komplett takarítása (1 alkalom/év)",null,0]
["2 db hydrofortartályok leengedése+komplett takarítása (1 alkalom/év)",null,0]
["1 db nyersvízmedence leengedése+komplett takarítása (1 alkalom/év)",null,0]
["3 db aktívszén szűrőtöltetek fertőtlenítése (1 alkalom/év)",null,0]
["3 db katalitikus szűrők fertőtlenítése (1 alkalom/év)",null,0]
["Karbantartási napló vezetése (kiszállásonként)",null,0]
["Korlátlan kiszállás hiba esetén: (hétköznap 24, hétvégén/ünnepnapokon 48 órán belül)",null,0]
[]
[]
["Mindösszesen (nettó Ft)",{"$f":"SUM(B5:B18)","v":0},{"$f":"SUM(C5:C18)","v":0}]
[]
["Mindösszesen (bruttó Ft)",{"$f":"(B21*1.27)","v":0},{"$f":"C21*1.27","v":0}]

{"sheet":"Vegyszer díj","index":2,"n_rows":13,"n_cols":3,"rows_kept":13,"cut":false,"hidden":false,"merged":[[0,0,2,2],[10,0,11,0],[12,0,13,0],[10,1,11,1],[12,1,13,1],[10,2,11,2],[12,2,13,2]]}
["Csak \"B\" oszlopot! szükséges kitölteni !!!!"]
[]
[]
[" Szükséges vegyszermennyiség: 200 m3/nap, 6000 m3/hónapra van meghatározva!","1 havi adag","12 havi adag"]
["Vas-klorid",null,{"$f":"SUM(B5*12)","v":0}]
["Kálium-permanganát",null,{"$f":"SUM(B6*12)","v":0}]
["Törésponti klór",null,0]
["Utóklór",null,0]
[]
[]
["Mindösszesen (nettó Ft)",{"$f":"SUM(B5:B8)","v":0},{"$f":"SUM(C5:C8)","v":0}]
[]
["Mindösszesen (bruttó Ft)",{"$f":"SUM(B11*1.27)","v":0},{"$f":"SUM(C11*1.27)","v":0}]